Cogmind - Beta 16.1 @@@ ROGUE MODE // 2026.02.24 @ 15:55:43 Player: j_ Result: Destroyed by NS-NX2(R) with Subdweller Machine Gun Performance ------------- Evolutions (0) 0 Regions Visited (2) 400 Robots Destroyed (11) 55 Value Destroyed (307) 307 Prototype IDs (0) 0 Alien Tech Used (0) 0 Bonus (0) 0 TOTAL SCORE: 762 Bonus ------- None Cogmind --------- Core Integrity 0/250 Matter 270/300 Energy 46/100 System Corruption 0% Temperature Cool (0) Movement Rolling (110) Location -10/Subcaves Parts ------- > --- POWER (1) -------- (None) > --- PROPULSION (2) --- Subdweller Monowheel Subdweller Monowheel > --- UTILITY (2) ------ Small Storage Unit > --- WEAPON (2) ------- (None) > --- INVENTORY (8) ---- Subdweller Monowheel Improved Heat Sink Improved Heat Sink Medium Battery (150) Dirty Datajack (15) Peak State ------------ > --- POWER ------------ Light Angular Momentum Engine > --- PROPULSION ------- Carbon-fiber Leg Carbon-fiber Leg > --- UTILITY ---------- Small Storage Unit Subdweller Optics > --- WEAPON ----------- Subdweller Laser Dirty Datajack > --- INVENTORY -------- Subdweller Monowheel Subdweller Monowheel Improved Heat Sink Improved Heat Sink Medium Battery Battle Cannon [Rating: 23] Favorites ----------- Power Ion Engine Engine Ion Engine Propulsion Compact Wheel Leg Carbon-fiber Leg Wheel Compact Wheel Utility Small Storage Unit Device Seismic Detector Storage Small Storage Unit Weapon Medium Laser Energy Gun Medium Laser Energy Cannon Subdweller Beam Cannon Ballistic Gun Assault Rifle Ballistic Cannon Battle Cannon Launcher Grenade Launcher Special Weapon Mining Laser Special Melee Weapon Dirty Datajack Build | -11 -10 -10 ------- Run | Yrd Mat Sub Slots Evolved . | . . . Power . | . . . Propulsion . | . . . Utility . | . . . Weapon . | . . . Parts Attached 27 | 9 5 13 Power 2 | 1 . 1 Engine 2 | 1 . 1 Core . | . . . Reactor . | . . . Propulsion 11 | 2 3 6 Treads . | . . . Leg 2 | . . 2 Wheel 9 | 2 3 4 Hover . | . . . Flight . | . . . Utility 4 | 3 . 1 Device 3 | 2 . 1 Storage 1 | 1 . . Processor . | . . . Hackware . | . . . Protection . | . . . Artifact . | . . . Weapon 10 | 3 2 5 Energy Gun 2 | 1 . 1 Energy Cannon 1 | . . 1 Ballistic Gun 1 | 1 . . Ballistic Cannon 1 | . . 1 Launcher 1 | . 1 . Special Weapon 3 | 1 1 1 Impact Weapon . | . . . Slashing Weapon . | . . . Piercing Weapon . | . . . Special Melee Weapon 1 | . . 1 Unidentified Prototypes . | . . . Parts Lost 11 | . . 11 Power 2 | . . 2 Propulsion 2 | . . 2 Utility 1 | . . 1 Weapon 6 | . . 6 Highest Loss Streak 7 | . . 7 To Critical Strikes 1 | . . 1 Average Backups 6 | 2 6 7 Power . | . . . Propulsion 3 | 1 4 3 Utility 1 | . . 2 Weapon . | . . 1 Tool/Special . | . . . Unused Backups 8 | 2 . 6 Power 1 | 1 . . Propulsion 2 | . . 2 Utility 3 | . . 3 Weapon 2 | 1 . 1 Tool/Special . | . . . Average Slot Usage (%) 92 | . 100 90 Engine 10 | . 14 8 Leg 11 | . . 16 Wheel 15 | . 28 11 Device 13 | . 14 12 Storage 14 | . 14 14 Energy Gun 10 | . 14 8 Energy Cannon 1 | . . 2 Ballistic Cannon 3 | . . 4 Launcher 2 | . 5 1 Special Weapon 4 | . 8 3 Special Melee Weapon 3 | . . 4 Peak Build Rating 23 | 9 7 23 Average Rating 12 | 4 7 15 On Entrance 4 | . 7 7 Avg Prop Armor Cover (%) . | . . . Naked Turns . | . . . Heaviest Build 27 | 14 16 27 Greatest Support 40 | 32 32 40 Greatest Overweight (x) 2 | 2 . 2 Average Overweight (x) . | . . . Largest Inventory Capacity 8 | 8 8 8 Average Capacity 7 | 7 8 8 Most Carried 8 | 5 8 8 Average Carried 6 | 1 6 7 Final Capacity 8 | 8 8 8 Final Carried 8 | 4 8 5 Class Distribution -------------------- 61% | Mutant 38% | Scavenger-Mutant Dominant Class ---------------- Mutant | -10/Materials Scavenger-Mutant | -10/Subcaves Resources | -11 -10 -10 ----------- Run | Yrd Mat Sub Matter Collected 515 | 290 20 205 Remotely . | . . . Salvage Created 454 | 125 . 329 Parts 28 | 11 . 17 Haulers Intercepted . | . . . Recyclers Shooed 1 | 1 . . Parts Field Recycled . | . . . Retrieved Matter . | . . . Parts Self-Destructed 2 | . . 2 Prevented . | . . . Parts Restored . | . . . Kills | -11 -10 -10 ------- Run | Yrd Mat Sub Combat Hostiles Destroyed 7 | . . 7 Guns 1 | . . 1 Cannons 6 | . . 6 Classes Destroyed 3 | 2 . 1 Tunneler 3 | 3 . . Recycler 1 | 1 . . Subdweller 7 | . . 7 Best Kill Streak 4 | 4 . 3 Combat Bots Only 3 | . . 3 Max Kills in Single Turn 1 | 1 . 1 Gunslinging . | . . . Exploded . | . . . Melee . | . . . Uniques/NPCs Destroyed . | . . . Combat | -11 -10 -10 -------- Run | Yrd Mat Sub Hostile Shots Fired 62 | . 2 60 Missed 12 | . . 12 Hits 50 | . 2 48 Projectile 50 | . 2 48 AOE 4 | . . 4 Critical Strikes 2 | . . 2 Damage Taken 1197 | . 23 1174 Core 270 | . 23 247 Absorbed by Shields . | . . . Core Remaining (%) 100 | 100 . . Volleys Fired 58 | 20 . 38 Largest 2 | 1 . 2 Hottest 140 | 50 . 140 Shots Fired 76 | 20 . 56 Gun 48 | 20 . 28 Cannon 26 | . . 26 Launcher . | . . . Special 2 | . . 2 Kinetic 10 | . . 10 Thermal 66 | 20 . 46 Explosive . | . . . Electromagnetic . | . . . Robot Hit Streak 29 | 4 . 29 Robot Miss Streak 1 | 1 . 1 Penetration Max . | . . . Secondary Targets . | . . . Shots Hit Robots 50 | 10 . 40 Core Hits 18 | 5 . 13 Critical Kills . | . . . Critical Parts Destroyed . | . . . Critical Strikes 3 | 1 . 2 Burn 3 | 1 . 2 Melee Attacks 5 | . . 5 Impact . | . . . Slashing . | . . . Piercing 5 | . . 5 Sneak Attacks . | . . . Combat Hostiles . | . . . Follow-up Attacks . | . . . Damage Inflicted 848 | 113 . 735 Guns 385 | 113 . 272 Cannons 429 | . . 429 Explosions . | . . . Melee 12 | . . 12 Ramming . | . . . Kinetic 184 | . . 184 Thermal 652 | 113 . 539 Explosive . | . . . Electromagnetic . | . . . Impact . | . . . Slashing . | . . . Piercing 12 | . . 12 Highest Corruption . | . . . Average Corruption . | . . . Corruption Purged . | . . . Corruption Blocked . | . . . Overload Shots . | . . . Overflow Damage . | . . . Projectiles . | . . . Explosions . | . . . Melee . | . . . Knockbacks 1 | . . 1 Impact . | . . . Kinetic 1 | . . 1 Secondary . | . . . Self-Inflicted Damage . | . . . Shots . | . . . Rammed . | . . . Targets Rammed . | . . . Kicked . | . . . Crushed . | . . . Highest Temperature 223 | 110 . 223 Average Temperature 44 | 40 . 47 Received Heat Transfer 463 | . 12 451 Siege Activations . | . . . Martial Activations . | . . . Shielding Activations . | . . . Robots Disrupted . | . . . Combat Hostiles . | . . . Robots Corrupted . | . . . Combat Hostiles . | . . . Parts Fried . | . . . Impact Corruptions . | . . . Robots Melted . | . . . Combat Hostiles . | . . . Parts Melted 3 | 1 . 2 Heat Transferred 1508 | 407 . 1101 Parts Sabotaged . | . . . Parts Stolen . | . . . Parts Stripped . | . . . Power Chain Reactions . | . . . Alert | -11 -10 -10 ------- Run | Yrd Mat Sub Maximum Alert Level . | . . . Low Security (%) 100 | 100 100 . Level 1 . | . . . Level 2 . | . . . Level 3 . | . . . Level 4 . | . . . Level 5 . | . . . High Security . | . . . Max Security . | . . . Peak Influence 10 | 10 . . Initial . | . . . Average . | 1 . . Influence Increases 20 | 20 . . Destroy 0b10 Robot/NC 20 | 20 . . Influence Decreases 20 | 20 . . Time Decay 20 | 20 . . Squads Dispatched 1 | . 1 . Investigation 1 | . 1 . Extermination . | . . . Reinforcement . | . . . Assault . | . . . Garrison . | . . . Intercept . | . . . Searches Triggered . | . . . Construction Impeded . | . . . Haulers Reinforced . | . . . Active Scanning Responses . | . . . Cargo Convoy Interrupts . | . . . Stealth | -11 -10 -10 --------- Run | Yrd Mat Sub Distress Signals . | . . . Communications Jammed . | . . . Distress Signals . | . . . Times Spotted 16 | . 1 15 Peak Tracking Total 5 | . 1 5 Tactical Retreats . | . . . Traps | -11 -10 -10 ------- Run | Yrd Mat Sub Traps Triggered 1 | . 1 . Indirectly . | . . . Trap Hack Attempts . | . . . Triggered . | . . . Disarmed . | . . . Reprogrammed . | . . . Reused . | . . . Traps Extracted . | . . . Installed . | . . . Triggered . | . . . Machines | -11 -10 -10 ---------- Run | Yrd Mat Sub Machines Disabled . | . . . Max in Single Turn . | . . . Machines Repaired . | . . . Machines Dismantled . | . . . Machines Sabotaged . | . . . Overloaded Fab Kills . | . . . Hacking | -11 -10 -10 --------- Run | Yrd Mat Sub Machines Accessed 1 | . 1 . Terminals 1 | . 1 . Fabricators . | . . . Repair Stations . | . . . Recycling Units . | . . . Scanalyzers . | . . . Garrison Access . | . . . Total Hacks 3 | . 3 . Successful 2 | . 2 . Failed 1 | . 1 . Catastrophic . | . . . Database Lockouts . | . . . Manual . | . . . Terminals 3 | . 3 . Fabricators . | . . . Repair Stations . | . . . Recycling Units . | . . . Scanalyzers . | . . . Garrison Access . | . . . Terminal Hacks 2 | . 2 . Alert Level 1 | . 1 . Locate Traps 1 | . 1 . Fabricator Hacks . | . . . Repair Station Hacks . | . . . Recycling Unit Hacks . | . . . Scanalyzer . | . . . Garrison Access Hacks . | . . . Unauthorized Hacks . | . . . Terminals . | . . . Fabricators . | . . . Repair Stations . | . . . Recycling Units . | . . . Scanalyzers . | . . . Garrison Access . | . . . Data Cores Recovered . | . . . Used . | . . . Hacking Detections 1 | . 1 . Full Trace Events . | . . . Feedback Events . | . . . Feedback Blocked . | . . . Robot Schematics Acquired . | . . . Robots Built . | . . . Authchips . | . . . Time . | . . . Total Robot Build Rating . | . . . Part Schematics Acquired . | . . . Parts Built . | . . . Authchips . | . . . Time . | . . . Total Part Build Rating . | . . . Part Studies Acquired . | . . . Parts Repaired . | . . . Time . | . . . Parts Recycled . | . . . Recycled Matter . | . . . Retrieved Matter . | . . . Retrieved Components . | . . . Parts Scanalyzed . | . . . Part Schematics Acquired . | . . . Parts Damaged . | . . . Bothacking | -11 -10 -10 ------------ Run | Yrd Mat Sub Used RIF Installer . | . . . Robots Hacked . | . . . Non-combat . | . . . Combat . | . . . Robot Hacks Applied . | . . . Relay Couplers Released . | . . . Fabnet Peak Effective % . | . . . Robots Rewired . | . . . Allies Hacked . | . . . Hacks Repelled . | . . . Allies | -11 -10 -10 -------- Run | Yrd Mat Sub Total Allies . | . . . Largest Group . | . . . Highest-Rated Group . | . . . Highest-Rated Ally . | . . . Total Orders . | . . . Ally Attacks . | . . . Total Damage . | . . . Kills . | . . . Allies Corrupted . | . . . Allies Melted . | . . . Intel | -11 -10 -10 ------- Run | Yrd Mat Sub Active Infowar (turns) 813 | 23 224 566 Optics 208 | . . 208 Terrain 8 | 8 . . Seismic 597 | 15 224 358 Robot Analysis Total . | . . . Derelict Logs Recovered 1 | . . 1 Drone Launches . | . . . Drone Recoveries . | . . . Exploration | -11 -10 -10 ------------- Run | Yrd Mat Sub Turns Passed 964 | 132 224 608 Spaces Moved 686 | 70 209 407 Core 22 | 17 . 5 Treads . | . . . Legs 229 | . . 229 Wheels 435 | 53 209 173 Hover . | . . . Flight . | . . . Fastest Speed 50 | 50 100 90 Average Speed 108 | 95 100 114 Slowest Speed 190 | 150 100 190 Overloaded Moves . | . . . Propulsion Burnouts . | . . . Robots Hopped . | . . . Potential Cave-ins . | . . . Cave-ins Triggered . | . . . Exploration Rate (%) 16 | 3 28 19 Regions Visited 2 Branch Regions 1 Pre-discovered Areas . | . . . Known Exits Taken . | . . . Unknown Exits Taken 2 | 1 1 . Scrap Searched 2 | . . 2 Spaces Dug 2 | . . 2 Terrain Destroyed 4 | . . 4 Melee . | . . . Projectile 4 | . . 4 AOE . | . . . Terrain Rammed . | . . . Walls Destroyed . | . . . Machines Disabled . | . . . Actions | -11 -10 -10 --------- Run | Yrd Mat Sub Total 831 | 114 221 496 Wait . | . . . Move 684 | 69 208 407 Hop . | . . . Pick Up 32 | 12 5 15 Fast Attach 4 | 3 . 1 Attach 13 | 5 . 8 Detach 2 | . . 2 Swap 16 | 1 7 8 Drop 17 | 4 1 12 Fire 58 | 20 . 38 Melee 5 | . . 5 Ram . | . . . Kick . | . . . Crush . | . . . Escape Stasis . | . . . Rewire . | . . . Trap . | . . . Miscellaneous . | . . . Route ------- -11/Scrapyard -10/Materials -10/Subcaves (discovered 1 exit: [*Mat]) History --------- Turn | Location | Event 13 | -11/Scrapyard | Discovered new exit (range 16) 133 | -11/Scrapyard | Entered Materials 305 | -10/Materials | Build established: Mutant 341 | -10/Materials | Discovered new exit (range 11) 357 | -10/Materials | Entered Subcaves 358 | -10/Subcaves | Approached by a straggling Scientist 361 | -10/Subcaves | Learned 2 Materials zone layouts 394 | -10/Subcaves | Shifting Twisted Machinery released Battle Cannon 396 | -10/Subcaves | Shifting Twisted Machinery released Scrap Shield 409 | -10/Subcaves | Discovered new exit (range 15) 439 | -10/Subcaves | Lost 3 parts (1p2w) 534 | -10/Subcaves | Ambushed by swarm of Subdwellers 596 | -10/Subcaves | Lost 4 allies 820 | -10/Subcaves | Core integrity fell below 50% 895 | -10/Subcaves | Build established: Scavenger-Mutant 903 | -10/Subcaves | A Subdweller sparked back to life 903 | -10/Subcaves | A Subdweller sparked back to life 945 | -10/Subcaves | Core integrity fell below 20% 965 | -10/Subcaves | Destroyed by NS-NX2(R) with Subdweller Machine Gun Last Messages --------------- 00874_ Dropped Sub. Optics. 00876_ Acquired Sub. Monowheel. 00903_ Z0-MR8(R) destroyed. 00903_ NS-NX2(R) creaks and sparks as it begins to move. 00903_ GJ-4J4(R) creaks and sparks as it begins to move. 00912_ NS-NX2(R) affixes Scrap Shield Fragment to Scrap Shield. 00918_ Lgt. Angular Momentum Engine destroyed. 00919_ NS-NX2(R) affixes Scrap Shield Fragment to Scrap Shield. 00925_ Seismic Detector destroyed. 00942_ Carbon-fiber Leg destroyed. 00943_ Sub. Laser destroyed. 00946_ Sub. Beam Cannon destroyed. 00948_ NS-NX2(R) knocked back. 00948_ Carbon-fiber Leg destroyed. 00955_ GJ-4J4(R) destroyed. 00955_ Battle Cannon destroyed. Map ----- +----------------------------------------------------+ | ?????????????????????????????????????????????????? | | ?????????????????????????????????????????????????? | | ?????????????????????????????????????????????????? | | ?????????????????????????????????????????????????? | | ?????????????????????????????????????????????????? | | ?????????????????????????????????????????????????? | | ?????????????????????????????????????????????????? | | ?????????????????????????????????????????????????? | | ?????????????????????????????????????????????????? | | ?????????????????????????????????????????????????? | | ?????????????????????????????????????????????????? | | ????????????????????????###??????????????????????? | | ????????????????????????#"##?????????????????????? | | ???????????????????????## #?????????????????????? | | ???????????????????????# #####"##??????????????? | | ???????????????????????# ## " " #??????????????? | | ????????????????????#### " #??????????????? | | ???????###?????????## #??????????????? | | ########&##????????# "##?????????????? | | =&%###??????# # "* #?????????????? | | ########&# ]#?####?## =%&##?????????????? | | ???????#### ###""###### ######??????????????? | | ??????????# "#! " #### R## ##??????????????????? | | ??????????# " !&% "" ##!% #??????????????????? | | ??????????##" "" !%& ##??????????????????? | | ???????????## ###""" @= % #??????????????????? | | ????????????###?### # # ####??????????????????? | | ??????????????????##########?????????????????????? | | ?????????????????????????????????????????????????? | | ?????????????????????????????????????????????????? | | ?????????????????????????????????????????????????? | | ?????????????????????????????????????????????????? | | ?????????????????????????????????????????????????? | | ?????????????????????????????????????????????????? | | ?????????????????????????????????????????????????? | | ?????????????????????????????????????????????????? | | ?????????????????????????????????????????????????? | | ?????????????????????????????????????????????????? | | ?????????????????????????????????????????????????? | | ?????????????????????????????????????????????????? | | ?????????????????????????????????????????????????? | | ?????????????????????????????????????????????????? | | | | | | | | | | | | | | | | | +----------------------------------------------------+ Best States ------------- Heat Dissipation 25 Energy Generation 18 Energy Capacity 250 Matter Stores 300 Matter Capacity 300 Sight Range 21 Terrain Scan Density 10 Evasion (%) 55 Item Schematics ----------------- None Robot Schematics ------------------ None Fabricated ------------ Nothing Repaired ---------- Nothing Studied --------- None Alien Tech Used ----------------- None Achievements -------------- Organ Harvest Spot Them First There's More Where That Came From Challenges ------------ None Game ------ Seed IonicArmorChargecaster Manual? 0 Play Time 00:21:05 Cumulative 35.7 hours Start 2026.02.24 @ 15:24:38 End 2026.02.24 @ 15:55:43 Sessions 3 Manual Loads 0 Difficulty Rogue Special Mode None Game No. 31 Rogue 31 Adventurer 0 Explorer 0 Win Type - Total 0 Types 0/0/0/0/0/0/0/0/0/0 Lore% 19 Gallery% 36 Achievement% 17 Wizard Run 0 Options --------- Layout 1 ASCII 0 Keyboard 0 Movement Mouse Keybinds 0 Fullscreen 1 Font 24/Smallcaps Map View 50x35 Zoom Use 0% Tactical HUD 1 Map Filters NONE Filters NONE Steam 1 RUN: c5b362a6-7ae0-4c95-b3e2-c5bf1a686925